bitfinex-derivatives/quotes_BNBF0:USTF0_20250315
["timestamp","ask_amount","ask_price","bid_price","bid_amount"]
[1742081855943,0.867,618.97,618.48,0.92411416]
[1742081856146,0.867,618.97,618.49,0.92411416]
[1742081856347,0.867,618.97,618.5,0.92411416]
[1742081856545,0.867,618.97,618.51,0.92411416]
[1742081856746,0.867,618.97,618.52,0.92411416]
[1742081856947,0.867,618.97,618.53,0.92411416]
[1742081857144,0.867,618.97,618.54,0.92411416]
[1742081857347,0.867,618.97,618.55,0.9242165]
[1742081857649,0.867,618.97,618.56,0.9242165]
[1742081857848,0.867,618.97,618.57,0.9242165]
[1742081858047,0.867,618.97,618.58,0.9242165]
[1742081858246,0.867,618.97,618.59,0.9242165]
[1742081858446,0.867,618.97,618.6,0.9242165]
[1742081858648,0.867,618.97,618.42,4.19]
[1742081858848,0.867,618.97,618.43,0.92423023]
[1742081859150,0.867,618.97,618.44,0.92423023]
[1742081859454,0.867,618.97,618.45,0.92423023]
[1742081859646,0.867,618.97,618.46,0.92423023]
[1742081859845,0.867,618.97,618.47,0.92424167]
[1742081860044,0.867,618.97,618.48,0.92424167]
[1742081860248,0.867,618.97,618.49,0.92424167]
[1742081860446,0.867,618.97,618.5,0.92424167]
[1742081860649,0.867,618.97,618.51,0.92424167]
[1742081860850,0.867,618.97,618.52,0.92424167]
[1742081861051,0.867,618.97,618.53,0.92424167]
[1742081861252,0.867,618.97,618.54,0.92424167]
[1742081861447,0.867,618.97,618.55,0.92424167]
[1742081861647,0.867,618.97,618.56,0.92424167]
[1742081861847,0.867,618.97,618.57,0.92424167]
[1742081862051,0.867,618.97,618.58,0.92424167]
[1742081862251,0.867,618.97,618.59,0.92424167]
[1742081862453,0.867,618.97,618.6,0.92424167]
[1742081862650,0.867,618.97,618.61,0.92424167]
[1742081862855,0.867,618.97,618.62,0.92424167]
[1742081863055,0.867,618.97,618.42,4.19]
[1742081863056,0.867,618.97,618.63,0.92424167]
[1742081863356,0.867,618.97,618.64,0.92409102]
[1742081863552,0.867,618.97,618.65,0.92409102]
[1742081863749,0.867,618.97,618.66,0.92409102]
[1742081863950,0.867,618.97,618.67,0.92409102]
[1742081864255,0.867,618.97,618.68,0.92409102]
[1742081864448,0.867,618.97,618.69,0.92409102]
[1742081864650,0.867,618.97,618.7,0.92409102]
[1742081864855,0.867,618.97,618.71,0.92409102]
[1742081865055,0.867,618.97,618.72,0.92409102]
[1742081865257,0.867,618.97,618.73,0.92409102]
[1742081865450,0.867,618.97,618.74,0.92409102]
[1742081865754,0.867,618.97,618.75,0.92409102]
[1742081865954,0.867,618.97,618.76,0.92409102]
[1742081866153,0.867,618.97,618.77,0.92409102]
[1742081866354,0.02,618.97,618.78,0.92409102]
[1742081866551,0.02,618.97,618.79,0.92207187]
[1742081866856,0.02,618.97,618.42,4.19]
[1742081867051,0.02,618.97,618.43,0.92212055]
[1742081867251,0.02,618.97,618.44,0.92212055]
[1742081867451,0.02,618.97,618.45,0.92212055]
[1742081867655,0.02,618.97,618.46,0.92212055]
[1742081867854,0.02,618.97,618.47,0.92212055]
[1742081868057,0.02,618.97,618.48,0.92212055]
[1742081868258,0.02,618.97,618.49,0.92212055]
[1742081868558,0.02,618.97,618.5,0.92212055]
[1742081868757,0.02,618.97,618.51,0.92212055]
[1742081868959,0.02,618.97,618.52,0.92212055]
[1742081869259,0.02,618.97,618.53,0.92212055]
[1742081869554,0.02,618.97,618.54,0.92212055]
[1742081869760,0.02,618.97,618.55,0.92212055]
[1742081869959,0.02,618.97,618.56,0.92212055]
[1742081870259,0.02,618.97,618.57,0.92212055]
[1742081870453,0.02,618.97,618.58,0.92212055]
[1742081870659,0.02,618.97,618.59,0.92212055]
[1742081870859,0.02,618.97,618.6,0.92212055]
[1742081871057,0.02,618.97,618.61,0.92212055]
[1742081871257,0.02,618.97,618.62,0.92212055]
[1742081871560,0.02,618.97,618.63,0.92212055]
[1742081871757,0.02,618.97,618.64,0.92212055]
[1742081871954,0.02,618.97,618.65,0.92212055]
[1742081872156,0.02,618.97,618.42,4.19]
[1742081872353,0.02,618.97,618.43,0.9215864]
[1742081872555,0.02,618.97,618.44,0.9215864]
[1742081872759,0.02,618.97,618.45,0.9215864]
[1742081872953,0.02,618.97,618.46,0.9215864]
[1742081873155,0.02,618.97,618.47,0.9215864]
[1742081873354,0.02,618.97,618.48,0.9215864]
[1742081873662,0.02,618.97,618.49,0.9215864]
[1742081873854,0.02,618.97,618.5,0.9215864]
[1742081874058,0.02,618.97,618.51,0.9215864]
[1742081874259,0.02,618.97,618.52,0.9215864]
[1742081874562,0.02,618.97,618.53,0.9215864]
[1742081874763,0.02,618.97,618.54,0.9215864]
[1742081874965,0.02,618.97,618.55,0.9215864]
[1742081875263,0.02,618.97,618.56,0.9215864]
[1742081875464,0.02,618.97,618.57,0.9215864]
[1742081875763,0.02,618.97,618.58,0.9215864]
[1742081875964,0.02,618.97,618.59,0.9215864]
[1742081876163,0.02,618.97,618.6,0.9215864]
[1742081876463,0.02,618.97,618.61,0.9215864]
[1742081876663,0.02,618.97,618.62,0.9215864]
[1742081876858,0.02,618.97,618.63,0.9215864]
[1742081877057,0.02,618.97,618.64,0.9215864]
[1742081877363,0.02,618.97,618.65,0.92116869]
[1742081877658,0.02,618.97,618.66,0.92116869]
[1742081877859,0.02,618.97,618.67,0.92116869]
[1742081878062,0.02,618.97,618.68,0.92116869]
[1742081878263,0.02,618.97,618.69,0.92116869]
[1742081878461,0.02,618.97,618.42,4.19]
[1742081878663,0.02,618.97,618.43,0.92111614]
[1742081878863,0.02,618.97,618.44,0.92111614]
[1742081879063,0.02,618.97,618.45,0.92111614]
[1742081879263,0.02,618.97,618.46,0.92111614]
[1742081879464,0.02,618.97,618.42,4.19]
[1742081879963,0.02,618.97,618.43,0.92040832]
[1742081880263,0.02,618.97,618.44,0.92040832]
[1742081880463,0.02,618.97,618.42,4.19]
[1742081880663,0.02,618.97,618.43,0.92044231]
[1742081880860,0.02,618.97,618.44,0.92044231]
[1742081881061,0.02,618.97,618.45,0.92044231]
[1742081881262,0.02,618.97,618.46,0.92044231]
[1742081881463,0.02,618.97,618.47,0.92044231]
[1742081881760,0.02,618.97,618.48,0.92044231]
[1742081881960,0.02,618.97,618.49,0.92044231]
[1742081882159,0.02,618.97,618.5,0.92044231]
[1742081882363,0.02,618.97,618.51,0.92044231]
[1742081882563,0.02,618.97,618.52,0.92044231]
[1742081882760,0.02,618.97,618.53,0.92044231]
[1742081882964,0.02,618.97,618.54,0.92044231]
[1742081883163,0.02,618.97,618.55,0.92044231]
[1742081883365,0.02,618.97,618.56,0.92044231]
[1742081883567,0.02,618.97,618.57,0.92044231]
[1742081883766,0.02,618.97,618.58,0.92044231]
[1742081883967,0.02,618.97,618.59,0.92044231]
[1742081884167,0.02,618.97,618.6,0.92044231]
[1742081884369,0.02,618.97,618.61,0.92044231]
[1742081884669,0.02,618.97,618.62,0.92044231]
[1742081884868,0.02,618.97,618.63,0.92044231]
[1742081885167,0.02,618.97,618.64,0.92044231]
[1742081885364,0.02,618.97,618.65,0.92044231]
[1742081885569,0.02,618.97,618.66,0.92044231]
[1742081885868,0.02,618.97,618.67,0.92044231]
[1742081886069,0.02,618.97,618.42,4.19]
[1742081886270,0.02,618.97,618.43,0.91994091]
[1742081886470,0.02,618.97,618.44,0.91994091]
[1742081886671,0.02,618.97,618.45,0.91994091]
[1742081886871,0.02,618.97,618.46,0.91994091]
[1742081887070,0.02,618.97,618.47,0.91994091]
[1742081887371,0.02,618.97,618.48,0.91994091]
[1742081887572,0.02,618.97,618.49,0.91994091]
[1742081887876,0.02,618.97,618.5,0.91994091]
[1742081888070,0.02,618.97,618.51,0.91994091]
[1742081888270,0.02,618.97,618.52,0.91994091]
[1742081888467,0.02,618.97,618.53,0.91994091]
[1742081888672,0.02,618.97,618.54,0.91994091]
[1742081888872,0.02,618.97,618.55,0.91994091]
[1742081889069,0.02,618.97,618.56,0.91994091]
[1742081889273,0.02,618.97,618.57,0.91994091]
[1742081889471,0.02,618.97,618.58,0.91994091]
[1742081889669,0.02,618.97,618.59,0.91994091]
[1742081889870,0.02,618.97,618.6,0.91994091]
[1742081890067,0.02,618.97,618.61,0.91994091]
[1742081890266,0.02,618.97,618.62,0.91994091]
[1742081890467,0.02,618.97,618.63,0.91994091]
[1742081890773,0.02,618.97,618.42,4.19]
[1742081890972,0.02,618.97,618.43,0.9200958]
[1742081891171,0.02,618.97,618.44,0.9200958]
[1742081891373,0.02,618.97,618.45,0.9200958]
[1742081891674,0.02,618.97,618.46,0.9200958]
[1742081891872,0.02,618.97,618.47,0.9200958]
[1742081892073,0.02,618.97,618.48,0.9200958]
[1742081892374,0.02,618.97,618.49,0.9200958]
[1742081892575,0.02,618.97,618.5,0.9200958]
[1742081892874,0.02,618.97,618.51,0.9200958]
[1742081893074,0.02,618.97,618.52,0.9200958]
[1742081893275,0.02,618.97,618.53,0.9200958]
[1742081893474,0.02,618.97,618.42,4.19]
[1742081893475,0.02,618.97,618.54,0.9200958]
[1742081893672,0.02,618.97,618.55,0.9200958]
[1742081893873,0.02,618.97,618.56,0.92028263]
[1742081894074,0.02,618.97,618.57,0.92028263]
[1742081894276,0.02,618.97,618.58,0.92028263]
[1742081894577,0.02,618.97,618.59,0.92028263]
[1742081894878,0.02,618.97,618.6,0.92028263]
[1742081895079,0.02,618.97,618.61,0.92028263]
[1742081895270,0.02,618.97,618.42,4.19]
[1742081895475,0.02,618.97,618.43,0.92039711]
[1742081895675,0.02,618.97,618.44,0.92039711]
[1742081895876,0.02,618.97,618.45,0.92039711]
[1742081896072,0.02,618.97,618.46,0.92039711]
[1742081896376,0.02,618.97,618.47,0.92039711]
[1742081896677,0.02,618.97,618.48,0.92039711]
[1742081896976,0.02,618.97,618.49,0.92039711]
[1742081897172,0.02,618.97,618.5,0.92039711]
[1742081897377,0.02,618.97,618.51,0.92039711]
[1742081897577,0.02,618.97,618.52,0.92078825]
[1742081897778,0.02,618.97,618.53,0.92078825]
[1742081897975,0.02,618.97,618.42,4.19]
[1742081898277,0.02,618.97,618.43,0.92083441]
[1742081898475,0.02,618.97,618.44,0.92083441]
[1742081898678,0.02,618.97,618.45,0.92083441]
[1742081898873,0.02,618.97,618.46,0.92083441]
[1742081899075,0.02,618.97,618.47,0.92083441]
[1742081899376,0.02,618.97,618.48,0.92083441]
[1742081899579,0.02,618.97,618.42,4.19]
[1742081899777,0.02,618.97,618.43,0.92142994]
[1742081899976,0.02,618.97,618.44,0.92142994]
[1742081900176,0.02,618.97,618.45,0.92142994]
[1742081900378,0.02,618.97,618.46,0.92142994]
[1742081900575,0.02,618.97,618.47,0.92136853]
[1742081900779,0.02,618.97,618.42,4.19]
[1742081900980,0.02,618.97,618.43,0.92146272]
[1742081901280,0.02,618.97,618.44,0.92146272]
[1742081901578,0.02,618.97,618.45,0.92146272]
[1742081901774,0.02,618.97,618.42,4.19]
[1742081901975,0.02,618.97,618.43,0.92136367]
[1742081902174,0.02,618.97,618.42,4.19]
[1742081902377,0.02,618.97,618.43,0.92150316]
[1742081902576,0.02,618.97,618.42,4.19]
[1742081902774,0.02,618.97,618.43,0.92149884]
[1742081902979,0.02,618.97,618.44,0.92149884]
[1742081903180,0.02,618.97,618.45,0.92143215]
[1742081903382,0.02,618.97,618.42,4.19]
[1742081903680,0.02,618.97,618.43,0.92131229]
[1742081903877,0.02,618.97,618.44,0.92131229]
[1742081904084,0.02,618.97,618.45,0.92131229]
[1742081904285,0.02,618.97,618.42,4.19]
[1742081904586,0.02,618.97,618.43,0.92125144]
[1742081904784,0.02,618.97,618.44,0.92125144]
[1742081904982,0.02,618.97,618.45,0.92125144]
[1742081905181,0.02,618.97,618.42,4.19]
[1742081905379,0.02,618.97,618.43,0.92120386]
[1742081905579,0.02,618.97,618.44,0.92120386]
[1742081905784,0.02,618.97,618.42,4.19]
[1742081905984,0.02,618.97,618.43,0.92114929]
[1742081906182,0.02,618.97,618.44,0.92114929]
[1742081906378,0.02,618.97,618.42,4.19]
[1742081906588,0.02,618.97,618.43,0.92107234]
[1742081906786,0.02,618.97,618.44,0.92107234]
[1742081906983,0.02,618.97,618.42,4.19]
[1742081925505,0.446,618.97,618.42,4.19]
[1742081928201,1.238,618.97,618.42,4.19]
[1742081937709,0.32312265,618.96,618.42,4.19]
[1742081938110,0.32312265,618.96,617.53,1.20178408]
[1742081938412,0.32312265,618.96,617.54,1.53970591]
[1742081938610,0.32312265,618.96,617.55,1.21584025]
[1742081938913,0.32312265,618.96,617.56,1.21584025]
[1742081939111,0.32312265,618.96,617.57,1.53969017]
[1742081939311,0.32312265,618.96,617.58,1.53968493]
[1742081939511,0.32312265,618.96,617.59,0.91858229]
[1742081939708,0.32312265,618.96,617.6,0.91858229]
[1742081940014,0.32312265,618.96,617.61,0.91858229]
[1742081940210,0.32312265,618.96,617.62,0.91858229]
[1742081940406,0.32312265,618.96,617.58,0.32384468]
[1742081940407,0.32312265,618.96,617.63,0.91858229]
[1742081940705,0.32312265,618.96,617.64,0.91858229]
[1742081940907,0.32312265,618.96,617.64,1.66658229]
[1742081941210,0.32312265,618.96,617.65,0.91858229]
[1742081941411,0.32312265,618.96,617.65,1.88858229]
[1742081941712,0.32312265,618.96,617.66,0.91858229]
[1742081942109,0.32312265,618.96,617.67,0.91858229]
[1742081942512,0.32312265,618.96,617.68,0.91858229]
[1742081942813,0.32312265,618.96,617.69,0.91858229]
[1742081943012,0.32312265,618.96,617.7,0.91858229]
[1742081943413,0.32312265,618.96,617.71,0.91879404]
[1742081943605,0.32312265,618.96,617.72,0.91879404]
[1742081943811,0.32312265,618.96,617.73,0.91879404]
[1742081944011,0.32312265,618.96,617.74,0.91879404]
[1742081944210,0.32312265,618.96,617.75,0.91874309]
[1742081944410,0.32312265,618.96,617.76,0.91874309]
[1742081944610,0.831,618.95,617.77,0.91874309]
[1742081944811,0.32313309,618.94,617.78,0.91874309]
[1742081945013,0.32313309,618.94,617.79,0.91874309]
[1742081945207,0.32313309,618.94,617.8,0.91874309]
[1742081945407,0.32313309,618.94,617.81,0.91874309]
[1742081945610,0.32313309,618.94,617.66,0.657]
[1742081945810,0.32313309,618.94,617.67,0.91898585]
[1742081946011,0.32313309,618.94,617.68,0.91898585]
[1742081946208,0.32313309,618.94,617.69,0.91898585]
[1742081946413,0.32313309,618.94,617.7,0.91898585]
[1742081946612,0.32313309,618.94,617.71,0.91898585]
[1742081946809,0.32313309,618.94,617.72,0.91898585]
[1742081947009,0.32313309,618.94,617.73,0.91898585]
[1742081947208,0.32313309,618.94,617.74,0.91898585]
[1742081947414,0.32313309,618.94,617.75,0.91898585]
[1742081947614,0.32313309,618.94,617.76,0.91898585]
[1742081947814,0.32313309,618.94,617.77,0.91898585]
[1742081948116,0.32313309,618.94,617.78,0.91898585]
[1742081948312,0.32313309,618.94,617.79,0.91898585]
[1742081948510,0.32313309,618.94,617.8,0.91898585]
[1742081948814,0.32313309,618.94,617.66,0.657]
[1742081948815,0.32313309,618.94,617.81,0.91898585]
[1742081949011,0.32313309,618.94,617.82,0.91898585]
[1742081949214,0.32313309,618.94,617.83,0.91898585]
[1742081949413,0.32313309,618.94,617.66,0.657]
[1742081949414,0.32313309,618.94,617.84,0.91898585]
[1742081949614,0.32313309,618.94,617.85,0.91898585]
[1742081949810,0.32313309,618.94,617.86,0.91898585]
[1742081950013,0.32313309,618.94,617.87,0.91898585]
[1742081950214,0.32313309,618.94,617.88,0.91898585]
[1742081950415,0.32313309,618.94,617.89,0.91898585]
[1742081950615,0.32313309,618.94,617.9,0.91898585]
[1742081950815,0.32313309,618.94,617.91,0.91898585]
[1742081951018,0.32313309,618.94,617.92,0.91898585]
[1742081951218,0.32313309,618.94,617.93,0.91898585]
[1742081951419,0.32313309,618.94,617.94,0.91937962]
[1742081951714,0.32313309,618.94,617.95,0.91937962]
[1742081951918,0.32313309,618.94,617.96,0.91937962]
[1742081952219,0.32313309,618.94,617.97,0.91937962]
[1742081952520,0.32313309,618.94,617.98,0.91937962]
[1742081952717,0.32313309,618.94,617.99,0.91937962]
[1742081952917,0.32313309,618.94,618.0,0.91937962]
[1742081953115,0.32313309,618.94,618.01,0.91937962]
[1742081953417,0.32313309,618.94,618.02,0.91937962]
[1742081953615,0.32313309,618.94,617.66,0.657]
[1742081953820,0.32313309,618.94,617.67,1.21706784]
[1742081954021,0.32313309,618.94,617.68,1.21706784]
[1742081954218,0.32313309,618.94,617.69,0.91984062]
[1742081954417,0.32313309,618.94,617.7,0.91984062]
[1742081954616,0.32313309,618.94,617.71,0.91984062]
[1742081954822,0.74913309,618.94,617.72,0.91984062]
[1742081955027,0.74913309,618.94,617.73,0.91984062]
[1742081955222,0.74913309,618.94,617.74,0.91984062]
[1742081955415,0.74913309,618.94,617.75,0.91984062]
[1742081955617,0.74913309,618.94,617.76,0.91984062]
[1742081955814,0.74913309,618.94,617.77,0.91984062]
[1742081956018,0.74913309,618.94,617.78,0.91984062]
[1742081956219,0.74913309,618.94,617.79,0.91984062]
[1742081956419,0.74913309,618.94,617.8,0.91984062]
[1742081956616,0.74913309,618.94,617.81,0.91984062]
[1742081956822,0.74913309,618.94,617.82,0.91984062]
[1742081957018,0.74913309,618.94,617.83,0.91984062]
[1742081957319,0.74913309,618.94,617.84,0.91984062]
[1742081957519,0.74913309,618.94,617.85,0.91984062]
[1742081957718,0.74913309,618.94,617.86,0.91984062]
[1742081957916,0.74913309,618.94,617.66,0.657]
[1742081957917,0.74913309,618.94,617.87,0.91984062]
[1742081958122,0.74913309,618.94,617.88,0.91984062]
[1742081958323,0.74913309,618.94,617.89,0.92127389]
[1742081958524,0.74913309,618.94,617.9,0.92127389]
[1742081958823,0.74913309,618.94,617.91,0.92127389]
[1742081959023,0.74913309,618.94,617.92,0.92127389]
[1742081959224,0.74913309,618.94,617.93,0.92127389]
[1742081959422,0.74913309,618.94,617.94,0.92132497]
[1742081959622,0.74913309,618.94,617.91,0.919]
[1742081959823,0.74913309,618.94,617.92,0.92146521]
[1742081960016,0.74913309,618.94,617.93,0.92146521]
[1742081960222,0.74913309,618.94,617.94,0.92146521]
[1742081960422,0.74913309,618.94,617.91,0.919]
[1742081961826,0.74913309,618.94,617.92,0.92125541]
[1742081962126,0.74913309,618.94,617.91,0.919]
[1742081963329,0.74913309,618.94,617.92,0.9210588]
[1742081963529,0.74913309,618.94,617.93,0.9210588]
[1742081963729,0.74913309,618.94,617.94,0.9210588]
[1742081964029,0.74913309,618.94,617.95,0.9210588]
[1742081964230,0.74913309,618.94,617.96,0.92101117]
[1742081964431,0.74913309,618.94,617.97,0.92101117]
[1742081964628,0.74913309,618.94,617.98,0.92101117]
[1742081964829,0.74913309,618.94,617.91,0.919]
[1742081965031,0.74913309,618.94,617.92,0.92121188]
[1742081965230,0.74913309,618.94,617.93,0.92121188]
[1742081965422,0.74913309,618.94,617.94,0.92121188]
[1742081965624,0.74913309,618.94,617.95,0.92121188]
[1742081965826,0.74913309,618.94,617.96,0.92121188]
[1742081966026,0.74913309,618.94,617.97,0.92121188]
[1742081966230,0.74913309,618.94,617.98,0.92121188]
[1742081966423,0.74913309,618.94,617.99,0.92156866]
[1742081966629,0.74913309,618.94,617.91,0.919]
[1742081966826,0.74913309,618.94,617.92,0.92157161]
[1742081967031,0.74913309,618.94,617.93,0.92157161]
[1742081967329,0.74913309,618.94,617.94,0.92157161]
[1742081967531,0.74913309,618.94,617.95,0.92157161]
[1742081967731,0.74913309,618.94,617.96,0.92157161]
[1742081967930,0.74913309,618.94,617.97,0.92157161]
[1742081968227,0.74913309,618.94,617.98,0.92157161]
[1742081968530,1.35313309,618.94,617.99,0.92157161]
[1742081968731,1.35313309,618.94,618.0,0.92157161]
[1742081968926,1.35313309,618.94,617.92,0.955]
[1742081969230,1.35313309,618.94,617.93,0.92178203]
[1742081969433,1.35313309,618.94,617.94,0.92178203]
[1742081969633,1.35313309,618.94,617.95,0.92178203]
[1742081969933,1.35313309,618.94,617.96,0.92178203]
[1742081974341,1.35313309,618.94,617.97,0.92194358]
[1742081974639,1.35313309,618.94,617.98,0.92194358]
[1742081974837,1.35313309,618.94,617.99,0.92194358]
[1742081975037,1.35313309,618.94,618.0,0.92194358]
[1742081975232,1.35313309,618.94,618.01,0.92194358]
[1742081975539,1.35313309,618.94,618.02,0.92194358]
[1742081975740,1.35313309,618.94,617.95,0.618]
[1742081975941,1.35313309,618.94,617.96,0.92192959]
[1742081976143,1.35313309,618.94,617.97,0.92192959]
[1742081976442,1.35313309,618.94,617.98,0.92192959]
[1742081976636,1.35313309,618.94,617.99,0.92192959]
[1742081976841,1.35313309,618.94,618.0,0.92192959]
[1742081977040,1.35313309,618.94,618.01,0.92192959]
[1742081977241,1.35313309,618.94,618.02,0.92192959]
[1742081977443,1.35313309,618.94,617.96,0.647]
[1742081977643,1.35313309,618.94,617.97,0.92195779]
[1742081977838,1.35313309,618.94,617.98,0.92195779]
[1742081978037,1.35313309,618.94,617.99,0.92195779]
[1742081978239,1.35313309,618.94,618.0,0.92195779]
[1742081978442,1.35313309,618.94,618.01,0.92195779]
[1742081978637,1.35313309,618.94,618.02,0.92195779]
[1742081978841,1.35313309,618.94,618.03,0.92195779]
[1742081979036,1.35313309,618.94,617.96,0.647]
[1742081979238,1.35313309,618.94,617.97,0.92198678]
[1742081979438,1.35313309,618.94,617.98,0.92198678]
[1742081979638,1.35313309,618.94,617.99,0.92198678]
[1742081979839,1.35313309,618.94,618.0,0.92198678]
[1742081980042,1.35313309,618.94,618.01,0.92198678]
[1742081980238,1.35313309,618.94,618.02,0.92198678]
[1742081980542,1.35313309,618.94,618.03,0.92198678]
[1742081980740,1.35313309,618.94,618.04,0.92198678]
[1742081980938,1.35313309,618.94,617.97,0.867]
[1742081981142,1.35313309,618.94,617.98,0.9221225]
[1742081981342,1.35313309,618.94,617.99,0.9221225]
[1742081981542,1.35313309,618.94,618.0,0.9221225]
[1742081981742,1.35313309,618.94,618.01,0.9221225]
[1742081981943,1.35313309,618.94,618.02,0.9221225]
[1742081982139,1.35313309,618.94,618.03,0.9221225]
[1742081982341,1.35313309,618.94,618.04,0.9221225]
[1742081982544,1.35313309,618.94,618.05,0.9221225]
[1742081982745,1.35313309,618.94,617.97,0.867]
[1742081982946,1.35313309,618.94,617.98,0.92229882]
[1742081983142,1.35313309,618.94,617.99,0.92229882]
[1742081983344,1.35313309,618.94,618.0,0.92229882]
[1742081983544,1.35313309,618.94,618.01,0.92229882]
[1742081983745,1.35313309,618.94,618.02,0.92229882]
[1742081983943,1.35313309,618.94,618.03,0.92229882]
[1742081984248,1.35313309,618.94,618.04,0.92229882]
[1742081986149,1.35313309,618.94,618.03,0.62]
[1742081986347,1.35313309,618.94,618.04,0.92262674]
[1742081986548,1.35313309,618.94,618.05,0.92262674]
[1742081986748,1.35313309,618.94,618.06,0.92262674]
[1742081986953,1.35313309,618.94,618.03,0.62]
[1742081987153,1.35313309,618.94,618.04,0.92270164]
[1742081987348,1.35313309,618.94,618.05,0.92270164]
[1742081987552,1.35313309,618.94,618.06,0.92270164]
[1742081987754,1.35313309,618.94,618.07,0.92270164]
[1742081987948,1.35313309,618.94,618.03,0.62]
[1742081988353,1.35313309,618.94,618.04,0.92288349]
[1742081988552,1.35313309,618.94,618.05,0.92288349]
[1742081988849,1.35313309,618.94,618.06,0.92288349]
[1742081989057,1.35313309,618.94,618.07,0.92288349]
[1742081989250,1.35313309,618.94,618.03,0.62]
[1742081989450,1.35313309,618.94,618.04,0.92318237]
[1742081989653,1.35313309,618.94,618.05,0.92318237]
[1742081989851,1.35313309,618.94,618.06,0.92318237]
[1742081990053,1.35313309,618.94,618.07,0.92318237]
[1742081990253,1.35313309,618.94,618.08,0.92318237]
[1742081990553,1.35313309,618.94,618.03,0.62]
[1742081990754,1.35313309,618.94,618.04,0.92335246]
[1742081991056,1.35313309,618.94,618.03,0.62]
[1742081991057,1.35313309,618.94,618.05,0.92335246]
[1742081991250,1.35313309,618.94,618.06,0.92335246]
[1742081991450,1.35313309,618.94,618.07,0.92335246]
[1742081991655,1.35313309,618.94,618.08,0.92335246]
[1742081991856,1.35313309,618.94,618.09,0.92335246]
[1742081992057,1.35313309,618.94,618.03,0.62]
[1742081992356,1.35313309,618.94,618.04,0.92360014]
[1742081992556,1.35313309,618.94,618.05,0.92360014]
[1742081992751,1.35313309,618.94,618.06,0.92360014]
[1742081992952,1.35313309,618.94,618.07,0.92360014]
[1742081993157,1.35313309,618.94,618.08,0.92360014]
[1742081993358,1.35313309,618.94,618.09,0.92360014]
[1742081993553,1.35313309,618.94,618.1,0.92360014]
[1742081993759,1.35313309,618.94,618.11,0.92360014]
[1742081993959,1.35313309,618.94,618.03,0.62]
[1742081994156,1.35313309,618.94,618.04,0.92408044]
[1742081994354,1.35313309,618.94,618.05,0.92408044]
[1742081994557,1.35313309,618.94,618.06,0.92408044]
[1742081994759,1.35313309,618.94,618.07,0.92408044]
[1742081994956,1.35313309,618.94,618.08,0.92408044]
[1742081995162,1.35313309,618.94,618.09,0.92408044]
[1742081995362,1.35313309,618.94,618.1,0.92408044]
[1742081995562,1.35313309,618.94,618.11,0.92408044]
[1742081995864,1.35313309,618.94,618.12,0.92408044]
[1742081996063,1.35313309,618.94,618.13,0.92408044]
[1742081996267,1.35313309,618.94,617.97,0.867]
[1742081996564,1.35313309,618.94,617.98,0.92474016]
[1742081996765,1.35313309,618.94,617.99,0.92474016]
[1742081997066,1.35313309,618.94,618.0,0.92474016]
[1742081997264,1.35313309,618.94,618.01,0.92474016]
[1742081997460,1.35313309,618.94,618.02,0.92474016]
[1742081997665,1.35313309,618.94,618.03,0.92474016]
[1742081997866,1.35313309,618.94,618.04,0.92474016]
[1742081998067,1.35313309,618.94,618.05,0.92474016]
[1742081998362,1.35313309,618.94,618.06,0.92474016]
[1742081998566,1.35313309,618.94,618.07,0.92474016]
[1742081998761,1.35313309,618.94,618.08,0.92474016]
[1742081998966,1.35313309,618.94,618.09,0.92474016]
[1742081999165,1.35313309,618.94,618.1,0.92474016]
[1742081999366,1.35313309,618.94,618.11,0.92474016]
[1742081999667,1.35313309,618.94,618.12,0.92474016]
[1742081999968,1.35313309,618.94,618.13,0.92474016]
[1742082000167,1.35313309,618.94,618.12,0.905]
[1742082002768,1.35313309,618.94,618.13,0.861]
[1742082009273,1.35313309,618.94,618.14,0.639]
[1742082010276,2.46609351,618.9,618.14,0.639]
[1742082010472,0.3231592,618.89,618.14,0.639]
[1742082012571,0.3231592,618.89,618.15,0.941]
[1742082013078,0.426,618.88,618.15,0.941]
[1742082013274,0.32316964,618.87,618.15,0.941]
[1742082014672,0.848,618.86,618.15,0.941]